bitfinex/quotes_BTCUSD_20220101
["timestamp","ask_amount","ask_price","bid_price","bid_amount"]
[1641053220528,0.052616,47310.0,47303.0,0.0187913]
[1641053220727,0.052616,47310.0,47304.0,0.00021909]
[1641053221585,0.052616,47310.0,47306.0,0.052862]
[1641053221784,0.052616,47310.0,47305.0,0.05286198]
[1641053221983,0.052616,47310.0,47307.0,0.00016432]
[1641053222184,0.052616,47310.0,47306.0,0.00018258]
[1641053222682,0.052616,47310.0,47307.0,0.05286161]
[1641053223082,0.052616,47310.0,47308.0,0.00014606]
[1641053224284,0.052616,47310.0,47306.0,0.00018258]
[1641053224884,0.052616,47310.0,47307.0,0.052863]
[1641053225181,0.052616,47310.0,47308.0,0.00014606]
[1641053226224,0.052616,47310.0,47307.0,0.00016432]
[1641053226426,0.052616,47310.0,47304.0,0.00021909]
[1641053227026,0.052616,47310.0,47303.0,0.00023735]
[1641053227225,0.052616,47310.0,47306.0,0.052864]
[1641053227627,0.052616,47310.0,47307.0,0.00016432]
[1641053228229,0.0424,47309.0,47307.0,0.00016432]
[1641053228529,0.0424,47309.0,47302.0,0.02008936]
[1641053228530,0.68885182,47308.0,47302.0,0.03346753]
[1641053228727,0.0424,47307.0,47302.0,0.03346753]
[1641053228926,0.37485998,47303.0,47302.0,0.03346753]
[1641053229167,0.79789015,47303.0,47302.0,0.03346753]
[1641053229372,1.19095065,47303.0,47302.0,0.03346753]
[1641053229767,1.25243665,47303.0,47302.0,0.03346753]
[1641053230068,1.35243665,47303.0,47302.0,0.03346753]
[1641053230270,1.35243665,47303.0,47298.0,0.01079677]
[1641053230469,0.06886994,47299.0,47298.0,0.01079677]
[1641053230668,0.16414994,47299.0,47298.0,0.01079677]
[1641053230868,0.21414994,47299.0,47298.0,0.01079677]
[1641053232370,0.05288,47298.0,47296.0,0.01079899]
[1641053232572,0.41553102,47297.0,47296.0,0.01079899]
[1641053232818,0.73664822,47297.0,47296.0,0.01079899]
[1641053233019,0.84372538,47297.0,47296.0,0.01079899]
[1641053233218,0.32,47296.0,47282.0,0.59705769]
[1641053233418,0.32,47296.0,47281.0,0.60755769]
[1641053233419,0.32912193,47289.0,47281.0,0.60755769]
[1641053233619,0.1070726,47288.0,47283.0,0.00036516]
[1641053233818,0.0424,47287.0,47283.0,0.00036516]
[1641053234419,0.052893,47286.0,47283.0,0.00036516]
[1641053234820,0.052893,47286.0,47284.0,0.26489005]
[1641053235219,0.052893,47286.0,47285.0,0.00032864]
[1641053236869,0.052893,47286.0,47284.0,0.31310676]
[1641053237070,0.052893,47286.0,47284.0,0.26489005]
[1641053237274,0.46489267,47285.0,47281.0,0.0105]
[1641053237470,0.052894,47284.0,47281.0,0.0105]
[1641053237668,0.0424,47283.0,47281.0,0.0105]
[1641053238671,0.3142545,47282.0,47281.0,0.0105]
[1641053238871,0.3671515,47282.0,47281.0,0.0105]
[1641053239070,0.3671515,47282.0,47281.0,0.01057303]
[1641053239271,0.052897,47282.0,47281.0,0.01057303]
[1641053239672,0.11596979,47282.0,47281.0,0.01057303]
[1641053240515,0.11596979,47282.0,47279.0,0.01009934]
[1641053240516,0.11596979,47282.0,47279.0,0.35967523]
[1641053240919,0.11596979,47282.0,47279.0,0.41256786]
[1641053242218,0.095297,47282.0,47279.0,0.41256786]
[1641053243922,0.095297,47282.0,47279.0,0.51834437]
[1641053244176,0.095297,47282.0,47280.0,0.052892]
[1641053244981,0.095297,47282.0,47280.0,0.10577945]
[1641053245375,0.052897,47282.0,47280.0,0.10577945]
[1641053245578,0.052885,47284.0,47280.0,0.10577945]
[1641053245877,9.129e-05,47286.0,47283.0,0.052879]
[1641053246077,9.129e-05,47286.0,47284.0,0.39372332]
[1641053246278,7.303e-05,47285.0,47284.0,0.39372332]
[1641053246476,7.303e-05,47285.0,47284.0,0.63085783]
[1641053246777,7.303e-05,47285.0,47284.0,2.16401458]
[1641053248335,7.303e-05,47285.0,47284.0,0.79888007]
[1641053248535,7.303e-05,47285.0,47284.0,0.05287732]
[1641053255828,7.303e-05,47285.0,47284.0,1.62605312]
[1641053256130,0.03989544,47290.0,47285.0,0.00124659]
[1641053256131,0.02027247,47290.0,47285.0,0.00124659]
[1641053256327,0.02027247,47290.0,47287.0,0.052866]
[1641053256529,0.00900197,47295.0,47287.0,0.052866]
[1641053256530,0.00900197,47295.0,47289.0,1.0112182]
[1641053256730,0.00900197,47295.0,47294.0,1.60965613]
[1641053256927,0.00900197,47295.0,47294.0,1.95050213]
[1641053257227,0.02054952,47302.0,47296.0,0.158575]
[1641053257428,4.952e-05,47302.0,47301.0,0.00120946]
[1641053257629,0.0002,47307.0,47301.0,1.71523126]
[1641053257928,0.00031038,47306.0,47305.0,0.06124103]
[1641053258130,0.00031038,47306.0,47305.0,1.95712761]
[1641053258327,0.00031038,47306.0,47305.0,1.01712761]
[1641053258928,0.00031038,47306.0,47305.0,1.40869383]
[1641053259778,0.00031038,47306.0,47305.0,1.4299428]
[1641053259976,0.00031038,47306.0,47305.0,2.5579428]
[1641053260575,0.00031038,47306.0,47305.0,2.53669383]
[1641053260878,0.00031038,47306.0,47305.0,2.55818228]
[1641053261778,0.00031038,47306.0,47305.0,2.239794]
[1641053261978,0.00031038,47306.0,47305.0,1.09030555]
[1641053262379,0.00031038,47306.0,47305.0,0.32182269]
[1641053262928,0.00031038,47306.0,47305.0,0.07348774]
[1641053263128,0.00031038,47306.0,47305.0,0.02063559]
[1641053263529,0.41138498,47306.0,47305.0,0.02063559]
[1641053263728,0.10031038,47306.0,47305.0,0.02063559]
[1641053264027,0.10031038,47306.0,47302.0,0.01906043]
[1641053264028,0.00031038,47306.0,47302.0,0.01906043]
[1641053264426,0.00029212,47305.0,47302.0,0.07193043]
[1641053264627,0.052865,47304.0,47302.0,0.07193043]
[1641053264827,0.05313887,47304.0,47302.0,0.07193043]
[1641053265028,0.00025561,47303.0,47302.0,0.05287]
[1641053265227,0.00025561,47303.0,47301.0,0.21145936]
[1641053265628,0.00023735,47302.0,47301.0,0.21145936]
[1641053266133,0.00023735,47302.0,47300.0,0.19023766]
[1641053266329,0.00023735,47302.0,47301.0,0.3099723]
[1641053266575,0.05393,47303.0,47301.0,0.3099723]
[1641053266969,0.05393,47303.0,47301.0,1.4379723]
[1641053267169,0.05393,47303.0,47302.0,1.28038238]
[1641053267369,0.05393,47303.0,47302.0,2.40838238]
[1641053267570,0.05418561,47303.0,47302.0,1.79922838]
[1641053267970,0.05418561,47303.0,47302.0,1.89922838]
[1641053268171,0.05418561,47303.0,47302.0,0.33038238]
[1641053268372,0.05418561,47303.0,47301.0,0.12493123]
[1641053268874,0.00023735,47302.0,47301.0,0.12493123]
[1641053269070,0.00023735,47302.0,47301.0,0.10571614]
[1641053269271,0.00023735,47302.0,47301.0,1.06726967]
[1641053269870,0.00023735,47302.0,47301.0,1.53526967]
[1641053270918,0.05416735,47302.0,47301.0,1.5555332]
[1641053271818,0.05416735,47302.0,47301.0,1.57715152]
[1641053272018,0.05416735,47302.0,47301.0,1.55688799]
[1641053272818,0.05416735,47302.0,47301.0,1.57887336]
[1641053273019,0.05416735,47302.0,47301.0,1.55725504]
[1641053273823,0.05416735,47302.0,47301.0,1.57649762]
[1641053274109,0.05416735,47302.0,47301.0,1.55451225]
[1641053274904,0.05416735,47302.0,47301.0,1.57306557]
[1641053275105,0.05416735,47302.0,47301.0,1.55382299]
[1641053275904,0.05416735,47302.0,47301.0,1.5725681]
[1641053276103,0.05416735,47302.0,47301.0,1.55401478]
[1641053276807,0.05416735,47302.0,47301.0,1.27128074]
[1641053277004,0.05416735,47302.0,47301.0,1.25253563]
[1641053277817,0.05416735,47302.0,47301.0,1.27387986]
[1641053278018,0.05416735,47302.0,47301.0,1.25506037]
[1641053278820,0.05416735,47302.0,47301.0,1.27584268]
[1641053279024,0.05416735,47302.0,47301.0,1.59534445]
[1641053279823,0.05416735,47302.0,47301.0,1.61474341]
[1641053280022,0.05416735,47302.0,47301.0,1.5939611]
[1641053280825,0.00023735,47302.0,47301.0,1.5939611]
[1641053281025,0.00023735,47302.0,47301.0,1.61274063]
[1641053281225,0.00023735,47302.0,47301.0,1.59334167]
[1641053281867,0.00023735,47302.0,47301.0,1.61309626]
[1641053282072,0.00023735,47302.0,47301.0,1.69431673]
[1641053282671,0.00023735,47302.0,47301.0,1.69559577]
[1641053282869,0.00023735,47302.0,47301.0,1.71519833]
[1641053283070,0.00023735,47302.0,47301.0,1.74544374]
[1641053283271,0.05413,47307.0,47302.0,1.350846]
[1641053283470,0.05413,47307.0,47305.0,1.128]
[1641053283676,0.05413,47307.0,47305.0,1.64383996]
[1641053283677,7.303e-05,47306.0,47305.0,1.64383996]
[1641053283874,0.0003,47310.0,47308.0,3.72136352]
[1641053283875,0.0002,47309.0,47308.0,3.72136352]
[1641053284072,0.0004,47315.0,47310.0,1.64256545]
[1641053284272,0.0002,47317.0,47316.0,1.668]
[1641053284573,0.0002,47317.0,47316.0,1.53013259]
[1641053284772,0.0002,47317.0,47316.0,1.61126265]
[1641053284974,0.0001,47318.0,47317.0,2.13920661]
[1641053285187,0.0001,47318.0,47317.0,2.58005261]
[1641053285421,0.0003191,47318.0,47317.0,2.58005261]
[1641053285823,0.0003,47319.0,47318.0,1.01]
[1641053286024,0.0003,47319.0,47318.0,2.93091272]
[1641053286424,0.0001,47319.0,47318.0,2.93091272]
[1641053286623,0.0001,47319.0,47318.0,2.9321143]
[1641053286823,0.0001,47319.0,47318.0,3.23493899]
[1641053287022,0.0001,47319.0,47318.0,3.15468154]
[1641053287228,0.0001,47319.0,47318.0,1.01668154]
[1641053287424,0.0001,47319.0,47318.0,0.67583554]
[1641053287623,0.0001,47319.0,47318.0,0.32256724]
[1641053288126,0.0001,47319.0,47318.0,0.32191749]
[1641053288926,0.0001,47319.0,47318.0,0.34387236]
[1641053289174,0.0001,47319.0,47318.0,0.32477956]
[1641053289773,0.0001,47319.0,47318.0,0.62708939]
[1641053289971,0.0001,47319.0,47318.0,0.64898773]
[1641053290175,0.0001,47319.0,47318.0,0.62703286]
[1641053290971,0.0001,47319.0,47318.0,0.6488254]
[1641053291172,0.0001,47319.0,47318.0,0.62692706]
[1641053291372,0.0001,47319.0,47318.0,0.96777306]
[1641053291574,0.0001,47319.0,47318.0,2.19577306]
[1641053291774,0.0003,47320.0,47319.0,1.01]
[1641053291974,0.0003,47320.0,47319.0,2.81831722]
[1641053292175,0.0003,47320.0,47319.0,0.68031722]
[1641053292376,0.0003,47320.0,47319.0,0.33947122]
[1641053292574,0.0003,47320.0,47319.0,1.08031722]
[1641053292823,0.0002,47321.0,47320.0,2.138]
[1641053293024,0.0002,47321.0,47320.0,2.478846]
[1641053293226,0.06101679,47322.0,47320.0,2.591678]
[1641053293425,0.06101679,47322.0,47321.0,0.66767965]
[1641053293627,0.06101679,47322.0,47320.0,0.21133398]
[1641053293826,0.06108982,47322.0,47320.0,0.21133398]
[1641053294027,0.06108982,47322.0,47320.0,0.23329316]
[1641053294726,0.05393,47321.0,47320.0,0.23329316]
[1641053295329,0.05393,47321.0,47320.0,0.21133398]
[1641053295529,0.05052,47321.0,47320.0,0.21133398]
[1641053298081,0.05052,47321.0,47320.0,0.052832]
[1641053298780,0.04806,47321.0,47320.0,0.052832]
[1641053298981,0.04806,47321.0,47320.0,0.35273204]
[1641053299381,0.00027303,47322.0,47320.0,0.91273204]
[1641053299581,0.00027303,47322.0,47321.0,2.07079871]
[1641053299781,0.00027303,47322.0,47321.0,0.94279871]
[1641053299986,0.00027303,47322.0,47321.0,0.30279871]
[1641053301225,0.00027303,47322.0,47321.0,0.32477755]
[1641053301424,0.00027303,47322.0,47321.0,0.02197884]
[1641053301823,0.00693878,47323.0,47321.0,0.02197884]
[1641053302022,0.0004,47324.0,47321.0,0.07482184]
[1641053302222,0.0004,47324.0,47321.0,0.052843]
[1641053302926,0.046321,47326.0,47321.0,0.16]
[1641053303124,0.046321,47326.0,47323.0,0.10568054]
[1641053303424,0.008609,47324.0,47323.0,0.05284054]
[1641053303624,0.0004,47327.0,47324.0,0.42]
[1641053303824,0.0004,47327.0,47326.0,0.29832639]
[1641053304094,0.0004,47327.0,47326.0,1.73265925]
[1641053304282,0.0004,47327.0,47326.0,2.07350525]
[1641053304483,0.0004,47327.0,47326.0,2.23350525]
[1641053304484,0.0001,47327.0,47326.0,2.23350525]
[1641053304683,0.0001,47327.0,47326.0,2.33754059]
[1641053304882,0.0001,47327.0,47326.0,2.48483059]
[1641053305082,0.0001,47327.0,47326.0,2.94786096]
[1641053305285,0.0001,47327.0,47326.0,2.8667309]
[1641053305483,0.0001,47327.0,47326.0,2.56039804]
[1641053305886,0.0001,47327.0,47326.0,2.53984804]
[1641053306083,0.0001,47329.0,47327.0,1.35211166]
[1641053306281,0.0004,47332.0,47330.0,0.05409948]
[1641053306483,0.0004,47332.0,47331.0,0.66543997]
[1641053306682,0.0004,47332.0,47330.0,0.00127848]
[1641053306882,0.00048258,47332.0,47331.0,1.350846]
[1641053307083,0.00909158,47332.0,47331.0,3.01289454]
[1641053307283,0.00909158,47332.0,47331.0,3.06289454]
[1641053307682,0.0002,47335.0,47332.0,1.01]
[1641053307937,0.0002,47335.0,47334.0,1.428]
[1641053308134,0.0002,47335.0,47334.0,0.483246]
[1641053308338,0.0002,47335.0,47334.0,0.6959615]
[1641053309135,0.0002,47335.0,47334.0,1.10060213]
[1641053309737,0.0002,47335.0,47334.0,2.22860213]
[1641053310140,0.0002,47335.0,47334.0,0.73543351]
[1641053310540,0.0002,47335.0,47334.0,0.06202996]
[1641053310738,0.00881,47335.0,47334.0,0.70246977]
[1641053311341,0.00881,47335.0,47334.0,0.68283981]
[1641053311615,0.00881,47335.0,47334.0,0.0424]
[1641053312008,0.00881,47335.0,47334.0,0.383246]
[1641053312708,0.00881,47335.0,47334.0,0.70181214]
[1641053313310,0.00881,47335.0,47334.0,0.42352065]
[1641053313510,0.00881,47335.0,47334.0,0.69913784]
[1641053314312,0.00881,47335.0,47334.0,0.71904966]
[1641053314514,0.00381,47335.0,47334.0,1.59023979]
[1641053314713,0.00381,47335.0,47334.0,0.70023979]
[1641053315339,0.00381,47335.0,47334.0,0.69960049]
[1641053315537,0.00381,47335.0,47334.0,0.40251852]
[1641053316338,0.00381,47335.0,47334.0,0.40217405]
[1641053316539,0.00381,47335.0,47334.0,0.69908896]
[1641053317138,0.00381,47335.0,47334.0,0.40217405]
[1641053317339,0.00381,47335.0,47334.0,0.42417054]
[1641053317541,0.00381,47335.0,47334.0,0.40524249]
[1641053318341,0.00381,47335.0,47334.0,0.72431665]
[1641053318540,0.00381,47335.0,47334.0,0.70232016]
[1641053319375,0.00381,47335.0,47334.0,0.72320397]
[1641053319573,0.00381,47335.0,47334.0,0.70415808]
[1641053320075,0.00381,47335.0,47334.0,0.40412981]
[1641053320274,0.00381,47335.0,47334.0,0.42608441]
[1641053320473,0.00381,47335.0,47334.0,0.70351724]
[1641053321073,0.0004,47338.0,47334.0,0.75634076]
[1641053321277,0.0004,47338.0,47334.0,0.7771506]
[1641053321476,0.0004,47338.0,47334.0,0.755196]
[1641053321875,0.0004,47338.0,47334.0,0.712796]
[1641053322277,0.0004,47338.0,47334.0,0.41447936]
[1641053322478,0.061825,47336.0,47334.0,0.41447936]
[1641053324524,0.061825,47336.0,47334.0,0.07363336]
[1641053324926,0.061825,47336.0,47334.0,0.11288198]
[1641053325127,0.061825,47336.0,47334.0,0.13220978]
[1641053325529,0.061825,47336.0,47334.0,0.05282352]
[1641053326226,0.056825,47336.0,47334.0,0.27282352]
[1641053326677,0.056825,47336.0,47334.0,0.37847252]
[1641053327476,0.056825,47336.0,47334.0,0.3986391]
[1641053328478,0.05658566,47336.0,47334.0,0.4169663]
[1641053328681,0.05658566,47336.0,47334.0,0.39679972]
[1641053329278,0.05658566,47336.0,47334.0,0.41590025]
[1641053329678,0.05658566,47336.0,47334.0,0.39757305]
[1641053330082,0.05658566,47336.0,47335.0,1.26695026]
[1641053330350,0.05665869,47336.0,47335.0,0.340846]
[1641053330545,0.05665869,47336.0,47334.0,0.39647691]
[1641053331351,0.05665869,47336.0,47334.0,0.41773995]
[1641053331549,0.05665869,47336.0,47334.0,0.17973556]
[1641053332456,0.04804869,47336.0,47334.0,0.07408656]
[1641053332654,0.1,47335.0,47333.0,0.02096579]
[1641053333153,0.09171115,47336.0,47333.0,0.02096579]
[1641053333353,0.052841,47335.0,47333.0,0.02096579]
[1641053333554,0.052841,47335.0,47329.0,0.00902578]
[1641053333754,0.2681067,47331.0,47329.0,0.00902578]
[1641053334294,0.2681067,47331.0,47324.0,0.052841]
[1641053334496,0.105682,47328.0,47324.0,0.052841]
[1641053334696,0.105682,47328.0,47325.0,0.00012781]
[1641053335196,0.105682,47328.0,47323.0,0.00016432]
[1641053335597,0.105682,47328.0,47325.0,0.10568156]
[1641053335997,0.105682,47328.0,47326.0,0.00010955]
[1641053336995,0.058721,47328.0,47326.0,0.00010955]
[1641053337846,1e-06,47328.0,47327.0,1.3100985]
[1641053338047,1e-06,47328.0,47327.0,2.05626404]
[1641053338245,1e-06,47328.0,47327.0,3.28435533]
[1641053338644,1e-06,47328.0,47327.0,3.32675533]
[1641053338843,1e-06,47328.0,47327.0,3.40788539]
[1641053339047,0.04804869,47336.0,47331.0,0.0528208]
[1641053339249,0.04804869,47336.0,47333.0,0.00123539]
[1641053339444,0.04804869,47336.0,47334.0,0.62664707]
[1641053340247,0.04804869,47336.0,47335.0,1.30699407]
[1641053340445,0.04804869,47336.0,47335.0,0.63784007]
[1641053340645,0.04804869,47336.0,47335.0,0.29699407]
[1641053341978,0.04804869,47336.0,47334.0,0.30666625]
[1641053342578,0.04804869,47336.0,47334.0,0.32473775]
[1641053343180,0.04804869,47336.0,47334.0,0.28580107]
[1641053343380,0.04804869,47336.0,47334.0,0.30580878]
[1641053344179,0.04804869,47336.0,47335.0,0.29597124]
[1641053344580,0.04804869,47336.0,47335.0,0.63681724]
[1641053344783,0.04804869,47336.0,47335.0,0.340846]
[1641053345440,0.04804869,47336.0,47335.0,0.36270871]
[1641053346440,0.04804869,47336.0,47335.0,0.38073504]
[1641053346640,0.04804869,47336.0,47335.0,0.35887233]
[1641053347539,0.04804869,47336.0,47335.0,0.38055398]
[1641053347741,0.04804869,47336.0,47335.0,0.36252765]
[1641053348542,0.04804869,47336.0,47335.0,0.38064256]
[1641053349393,0.04804869,47336.0,47335.0,0.340846]
[1641053349599,0.04804869,47336.0,47335.0,0.36113103]
[1641053350493,0.04804869,47336.0,47335.0,0.38110706]
[1641053350693,0.04804869,47336.0,47335.0,0.36082203]
[1641053351494,0.04804869,47336.0,47335.0,0.38157941]
[1641053351693,0.04804869,47336.0,47335.0,0.36160338]
[1641053352496,7.303e-05,47336.0,47335.0,3.03650335]
[1641053352700,0.0024,47339.0,47335.0,3.03650335]
[1641053352701,0.0004,47346.0,47338.0,1.52880829]
[1641053352957,0.0003,47352.0,47350.0,1.05709527]
[1641053353154,0.0003,47352.0,47350.0,0.38794127]
[1641053353354,0.04689527,47357.0,47356.0,0.00122677]
[1641053353557,0.04689527,47357.0,47356.0,0.34207277]
[1641053353754,0.0003,47362.0,47356.0,0.34207277]
[1641053354554,0.0003,47362.0,47356.0,0.36027271]
[1641053355158,0.0003,47362.0,47357.0,1.32004011]
[1641053355354,0.0003,47362.0,47357.0,1.66088611]
[1641053355555,0.00080167,47358.0,47357.0,1.76088611]
[1641053355754,0.00070167,47358.0,47357.0,1.76088611]
[1641053356154,0.00070167,47358.0,47357.0,2.88888611]
[1641053356356,0.0001,47360.0,47358.0,1.350846]
[1641053356605,0.0001,47360.0,47359.0,2.97350454]
[1641053356801,0.0003,47365.0,47360.0,1.01]
[1641053356998,0.0003,47365.0,47362.0,1.178]
[1641053357300,0.0003,47365.0,47363.0,0.34206073]
[1641053357596,0.00619182,47365.0,47364.0,2.49572144]
[1641053357798,0.0004,47374.0,47364.0,2.49572144]
[1641053357799,0.0003,47368.0,47365.0,1.07]
[1641053357996,0.0003,47368.0,47366.0,1.518846]
[1641053358196,0.0003,47368.0,47367.0,1.128]
[1641053358197,0.0002,47368.0,47367.0,1.128]
[1641053358399,0.0002,47368.0,47367.0,1.82656744]
[1641053358600,0.00038258,47368.0,47367.0,1.64997606]
[1641053358798,0.0004,47374.0,47368.0,2.138]
[1641053358799,0.0012,47369.0,47368.0,2.138]
[1641053358999,0.0004,47376.0,47373.0,0.001]
[1641053359204,0.0004,47382.0,47381.0,1.1235]
[1641053359403,0.0004,47382.0,47381.0,1.464346]
[1641053359598,0.0004,47382.0,47381.0,2.692346]
[1641053359805,0.0002,47382.0,47381.0,2.817116]
[1641053360456,0.001,47389.0,47388.0,1.11741635]
[1641053360655,0.001,47389.0,47388.0,1.9596014]
[1641053360852,0.0005,47392.0,47388.0,2.72987996]
[1641053361051,0.0002,47391.0,47389.0,0.69856744]
[1641053361256,0.0002,47391.0,47390.0,1.69856744]
[1641053361458,0.0003,47396.0,47391.0,1.0]
[1641053361652,0.0003,47396.0,47392.0,1.47011209]
[1641053361851,0.0004,47396.0,47393.0,0.0012851]
[1641053362054,0.0001,47396.0,47394.0,0.340846]
[1641053362455,0.00565176,47396.0,47394.0,0.440846]
[1641053362651,0.00575324,47396.0,47395.0,1.43407102]
[1641053362851,0.00565176,47396.0,47395.0,1.77491702]
[1641053363052,0.0004444,47398.0,47396.0,1.340846]
[1641053363354,0.0004444,47398.0,47397.0,1.43283501]
[1641053363552,0.0004444,47398.0,47397.0,1.77368101]
[1641053363954,0.0004444,47398.0,47397.0,1.87368101]
[1641053364391,0.0015,47399.0,47397.0,1.93368101]
[1641053364392,0.0012,47399.0,47397.0,1.93368101]
[1641053364588,0.0012,47399.0,47398.0,1.76487782]
[1641053364790,0.0003,47400.0,47398.0,1.76487782]
[1641053364993,0.0004,47401.0,47398.0,1.76487782]
[1641053364994,0.0002,47401.0,47400.0,2.12925155]
[1641053365190,0.0002,47401.0,47400.0,1.57009755]
[1641053365390,0.0002,47401.0,47400.0,0.44209755]
[1641053365593,0.0002,47401.0,47400.0,0.1]
[1641053365788,0.0002,47401.0,47400.0,0.02031771]
[1641053366593,0.05276,47403.0,47400.0,0.02031771]
[1641053366891,0.1,47401.0,47400.0,0.02031771]
[1641053367092,0.00139168,47402.0,47400.0,0.02031771]
[1641053367293,0.00010955,47401.0,47400.0,0.02031771]
[1641053367494,0.00010955,47401.0,47399.0,0.01930811]
[1641053367942,9.129e-05,47400.0,47398.0,0.05275825]
[1641053368342,7.303e-05,47399.0,47398.0,0.05275825]
[1641053368543,7.303e-05,47399.0,47398.0,0.05276]
[1641053368941,7.303e-05,47399.0,47397.0,0.01948434]
[1641053369942,7.303e-05,47399.0,47397.0,0.37293059]
[1641053370143,7.303e-05,47399.0,47397.0,0.052761]
[1641053370343,7.303e-05,47399.0,47390.0,0.02274945]
[1641053370344,0.37293059,47397.0,47390.0,0.23258967]
[1641053370644,0.37293059,47397.0,47391.0,7.303e-05]
[1641053370645,0.1,47393.0,47391.0,7.303e-05]
[1641053370843,1.04901848,47392.0,47391.0,7.303e-05]
[1641053371042,0.82,47391.0,47390.0,0.00641154]
[1641053371245,0.97174317,47391.0,47390.0,0.00641154]
[1641053371442,0.59174317,47391.0,47390.0,0.00641154]
[1641053371695,0.37287323,47391.0,47390.0,0.00641154]
[1641053371893,0.47287323,47391.0,47390.0,0.00641154]
[1641053372096,0.47287323,47391.0,47381.0,0.1235]
[1641053372294,0.47287323,47391.0,47388.0,0.11741635]
[1641053372697,0.06886994,47389.0,47388.0,0.11741635]
[1641053373293,0.11126994,47389.0,47388.0,0.11741635]
[1641053373493,0.16126994,47389.0,47388.0,0.11741635]
[1641053373696,0.0424,47389.0,47388.0,0.11741635]
[1641053374497,8.74e-05,47389.0,47388.0,0.11741635]
[1641053376438,0.28366872,47389.0,47388.0,0.11741635]
[1641053376637,0.96489844,47389.0,47388.0,0.11741635]
[1641053376840,0.39019423,47389.0,47388.0,0.11741635]
[1641053377037,0.39019423,47389.0,47388.0,1.635e-05]
[1641053377038,0.00661291,47389.0,47388.0,1.635e-05]
[1641053377239,0.00131712,47389.0,47388.0,1.635e-05]
[1641053378037,0.25334665,47389.0,47388.0,1.635e-05]
[1641053378238,0.00131712,47389.0,47388.0,1.635e-05]
[1641053378437,8.74e-05,47389.0,47388.0,1.635e-05]
[1641053379104,8.74e-05,47389.0,47388.0,0.31885167]
[1641053379895,8.74e-05,47389.0,47388.0,0.33988176]
[1641053380697,8.74e-05,47389.0,47388.0,0.31885167]
[1641053380899,8.74e-05,47389.0,47388.0,0.33824304]
[1641053381100,8.74e-05,47389.0,47388.0,0.01940772]
[1641053381903,0.36393796,47389.0,47388.0,1.635e-05]
[1641053382103,0.61520294,47389.0,47388.0,1.635e-05]
[1641053382303,1.0,47388.0,47385.0,0.00898527]
[1641053382502,1.16166194,47386.0,47385.0,8.527e-05]
[1641053382701,1.56259173,47386.0,47385.0,8.527e-05]
[1641053382930,0.82259173,47386.0,47385.0,8.527e-05]
[1641053383733,0.89146167,47386.0,47385.0,8.527e-05]
[1641053383934,0.76,47385.0,47381.0,0.1230803]
[1641053384133,0.0050342,47383.0,47381.0,0.1230803]
[1641053384335,0.195191,47382.0,47381.0,0.1230803]
[1641053384535,0.30224086,47382.0,47381.0,0.1230803]
[1641053384737,0.20224086,47382.0,47381.0,0.12326288]
[1641053385035,0.37119253,47382.0,47381.0,0.12326288]
[1641053385238,0.80912262,47382.0,47381.0,0.12326288]
[1641053385436,1.18224252,47382.0,47381.0,0.12326288]
[1641053385639,0.65912262,47382.0,47381.0,0.12326288]
[1641053386136,1.2867845,47382.0,47381.0,0.12326288]
[1641053386337,1.1867845,47382.0,47381.0,0.12326288]
[1641053386598,1.2867845,47382.0,47381.0,0.12326288]
[1641053386993,1.1867845,47382.0,47381.0,0.12326288]
[1641053387394,1.0867845,47382.0,47381.0,0.12326288]
[1641053387695,1.1867845,47382.0,47381.0,0.12326288]
[1641053390348,1.1867845,47382.0,47379.0,0.0122435]
[1641053390349,0.1730803,47381.0,47379.0,0.0122435]
[1641053390548,2.15048364,47380.0,47379.0,0.0122435]
[1641053390749,1.20048364,47380.0,47379.0,0.0122435]
[1641053390951,1.30818276,47380.0,47379.0,0.0122435]
[1641053391352,1.30818276,47380.0,47376.0,0.00904118]
[1641053391353,1.0,47379.0,47376.0,0.00904118]
[1641053391550,0.9,47377.0,47376.0,0.00904118]
[1641053391753,0.61746672,47377.0,47376.0,0.00904118]
[1641053391950,0.3424,47377.0,47376.0,0.00904118]
[1641053392251,0.34865572,47377.0,47365.0,0.01940137]
[1641053392453,0.052799,47371.0,47365.0,0.01940137]
[1641053392651,0.0424,47370.0,47366.0,0.00027387]
[1641053392853,0.36890329,47367.0,47366.0,0.00027387]
[1641053393458,0.36890329,47367.0,47365.0,0.00029212]
[1641053394101,0.36890329,47367.0,47363.0,0.00032864]
[1641053394494,0.36890329,47367.0,47362.0,0.0003469]
[1641053395499,0.052804,47365.0,47362.0,0.1059496]
[1641053395697,6.796e-05,47366.0,47362.0,0.1059496]
[1641053395898,6.796e-05,47366.0,47363.0,0.00032864]
[1641053396596,0.05286596,47366.0,47364.0,0.052796]
[1641053397096,0.05286596,47366.0,47365.0,0.00029212]
[1641053404793,0.05286596,47366.0,47365.0,0.27426694]
[1641053405635,0.05286596,47366.0,47365.0,0.27455906]
[1641053406035,0.05286596,47366.0,47365.0,0.00029212]
[1641053406541,0.05286596,47366.0,47364.0,0.35595052]
[1641053406737,6.796e-05,47366.0,47365.0,1.34213956]
[1641053407139,6.796e-05,47366.0,47365.0,0.00129356]
[1641053407336,6.796e-05,47366.0,47365.0,0.34213956]
[1641053407538,0.31138599,47380.0,47376.0,0.25258964]
[1641053407739,0.052786,47378.0,47376.0,0.25258964]
[1641053407938,0.052786,47378.0,47377.0,7.303e-05]
[1641053408138,0.05365238,47378.0,47370.0,0.1055768]
[1641053408339,0.052786,47378.0,47370.0,0.1055768]
[1641053408538,0.05,47378.0,47371.0,0.00010955]
[1641053409087,0.205577,47379.0,47372.0,0.25645474]
[1641053409280,0.052788,47377.0,47374.0,0.05278918]
[1641053409485,0.1230803,47381.0,47375.0,0.30175995]
[1641053409683,0.1230803,47381.0,47376.0,0.00120232]
[1641053410784,0.1230803,47381.0,47380.0,0.25279374]
[1641053410986,0.1230803,47381.0,47379.0,0.052781]
[1641053411185,0.12315333,47381.0,47375.0,0.0210603]
[1641053411586,0.052785,47378.0,47375.0,0.0210603]
[1641053411784,0.12315333,47381.0,47375.0,0.0210603]
[1641053411986,0.12315333,47381.0,47376.0,0.05278133]
[1641053412185,0.12315333,47381.0,47378.0,0.052781]
[1641053412586,0.12315333,47381.0,47379.0,0.24760709]
[1641053413247,0.12315333,47381.0,47379.0,0.35316611]
[1641053413948,0.05278,47380.0,47379.0,0.35316611]
[1641053414154,0.05278,47380.0,47379.0,0.30038709]
[1641053414748,0.05278,47380.0,47379.0,0.32071821]
[1641053415148,0.12315333,47381.0,47379.0,0.34035938]
[1641053415348,0.12315333,47381.0,47379.0,0.32002826]
[1641053415550,0.12315333,47381.0,47380.0,0.29964225]
[1641053415750,0.12315333,47381.0,47380.0,0.64176032]
[1641053416151,0.12315333,47381.0,47380.0,0.34211807]